[Event "December 19 Early 2023"]
[Site "https://www.chess.com"]
[Date "2023.12.19"]
[Round "8"]
[White "Burovic, Rijad"]
[Black "Rustemov, Alexander"]
[Result "0-1"]
[Board "48"]
[TimeControl "180+1"]
[WhiteFideId "14407701"]
[BlackFideId "4119002"]
[WhiteElo "2384"]
[BlackElo "2781"]
[WhiteTeam "BIH"]
[BlackTeam "RUS"]
[WhiteClock "0:00:05"]
[BlackClock "0:00:30"]

1. e4 {[%clk 0:03:00]}  e6 {[%clk 0:02:58]} 2. d3 {[%clk 0:03:00]}  c5 {[%clk 0:02:58]} 3. g3 {[%clk 0:03:00]}  Nc6 {[%clk 0:02:58]} 4. Bg2 {[%clk 0:03:00]}  g6 {[%clk 0:02:59]} 5. f4 {[%clk 0:03:01]}  Bg7 {[%clk 0:03:00]} 6. Nf3 {[%clk 0:03:02]}  Nge7 {[%clk 0:03:00]} 7. O-O {[%clk 0:03:02]}  O-O {[%clk 0:03:01]} 8. c3 {[%clk 0:03:03]}  b6 {[%clk 0:02:53]} 9. Be3 {[%clk 0:03:03]}  Ba6 {[%clk 0:02:52]} 10. Bf2 {[%clk 0:03:01]}  d6 {[%clk 0:02:46]} 11. Re1 {[%clk 0:03:00]}  Qd7 {[%clk 0:02:45]} 12. a4 {[%clk 0:02:47]}  Rac8 {[%clk 0:02:43]} 13. Na3 {[%clk 0:02:47]}  Rfd8 {[%clk 0:02:42]} 14. Bh3 {[%clk 0:02:39]}  Bb7 {[%clk 0:02:36]} 15. Rc1 {[%clk 0:02:19]}  d5 {[%clk 0:02:36]} 16. e5 {[%clk 0:02:15]}  d4 {[%clk 0:02:36]} 17. c4 {[%clk 0:02:14]}  a6 {[%clk 0:02:32]} 18. Bg2 {[%clk 0:02:14]}  Nf5 {[%clk 0:02:31]} 19. Nc2 {[%clk 0:02:05]}  Nce7 {[%clk 0:02:15]} 20. b3 {[%clk 0:02:00]}  h5 {[%clk 0:02:13]} 21. Ng5 {[%clk 0:01:51]}  Bxg2 {[%clk 0:02:09]} 22. Kxg2 {[%clk 0:01:52]}  b5 {[%clk 0:02:09]} 23. Ne4 {[%clk 0:01:53]}  bxa4 {[%clk 0:02:07]} 24. bxa4 {[%clk 0:01:53]}  Qxa4 {[%clk 0:02:06]} 25. Ra1 {[%clk 0:01:53]}  Qc6 {[%clk 0:02:06]} 26. Qf3 {[%clk 0:01:53]}  Rb8 {[%clk 0:02:00]} 27. Ra2 {[%clk 0:01:54]}  Rb6 {[%clk 0:01:57]} 28. Rea1 {[%clk 0:01:52]}  Rdb8 {[%clk 0:01:57]} 29. h3 {[%clk 0:01:51]}  Rb2 {[%clk 0:01:39]} 30. Rxa6 {[%clk 0:01:48]}  Qxa6 {[%clk 0:01:33]} 31. Rxa6 {[%clk 0:01:47]}  Rxc2 {[%clk 0:01:34]} 32. g4 {[%clk 0:00:57]}  Nh4+ {[%clk 0:01:33]} 33. Kg3 {[%clk 0:00:56]}  Nxf3 {[%clk 0:01:33]} 34. Kxf3 {[%clk 0:00:57]}  hxg4+ {[%clk 0:01:29]} 35. hxg4 {[%clk 0:00:57]}  Rb3 {[%clk 0:01:03]} 36. Nxc5 {[%clk 0:00:56]}  Rb8 {[%clk 0:00:53]} 37. Bxd4 {[%clk 0:00:57]}  Rc8 {[%clk 0:00:45]} 38. Nb7 {[%clk 0:00:44]}  Rd2 {[%clk 0:00:43]} 39. Ke3 {[%clk 0:00:37]}  Rg2 {[%clk 0:00:42]} 40. Kf3 {[%clk 0:00:37]}  Rd2 {[%clk 0:00:40]} 41. Ke3 {[%clk 0:00:37]}  Rd1 {[%clk 0:00:40]} 42. Nd6 {[%clk 0:00:38]}  Rd8 {[%clk 0:00:39]} 43. Bb6 {[%clk 0:00:34]}  Rf8 {[%clk 0:00:37]} 44. Bc5 {[%clk 0:00:30]}  g5 {[%clk 0:00:36]} 45. fxg5 {[%clk 0:00:21]}  Ng6 {[%clk 0:00:35]} 46. Ne4 {[%clk 0:00:20]}  Rd8 {[%clk 0:00:34]} 47. d4 {[%clk 0:00:17]}  Rg1 {[%clk 0:00:32]} 48. Nf6+ {[%clk 0:00:10]}  Bxf6 {[%clk 0:00:31]} 49. gxf6 {[%clk 0:00:11]}  Rxg4 {[%clk 0:00:31]} 50. Ra7 {[%clk 0:00:10]}  Rb8 {[%clk 0:00:31]} 51. Ra3 {[%clk 0:00:05]}  Rg3+ {[%clk 0:00:30]} 0-1

[Event "December 19 Early 2023"]
[Site "https://www.chess.com"]
[Date "2023.12.19"]
[Round "8"]
[White "Tulchynskyi, Feliks"]
[Black "Haring, Filip"]
[Result "0-1"]
[Board "51"]
[TimeControl "180+1"]
[WhiteFideId "34127895"]
[BlackFideId "14933080"]
[WhiteElo "2131"]
[BlackElo "2375"]
[WhiteTeam "UKR"]
[BlackTeam "SVK"]
[WhiteClock "0:00:06"]
[BlackClock "0:00:02"]

1. c4 {[%clk 0:02:53]}  e5 {[%clk 0:02:59]} 2. Nc3 {[%clk 0:02:53]}  Bb4 {[%clk 0:02:59]} 3. Nf3 {[%clk 0:02:51]}  Nc6 {[%clk 0:02:55]} 4. Nd5 {[%clk 0:02:51]}  Be7 {[%clk 0:02:51]} 5. g3 {[%clk 0:02:50]}  Nf6 {[%clk 0:02:46]} 6. Bg2 {[%clk 0:02:49]}  d6 {[%clk 0:02:41]} 7. O-O {[%clk 0:02:48]}  Be6 {[%clk 0:02:41]} 8. Ne1 {[%clk 0:02:45]}  O-O {[%clk 0:02:38]} 9. Nc2 {[%clk 0:02:44]}  Qd7 {[%clk 0:02:27]} 10. e4 {[%clk 0:02:37]}  Bg4 {[%clk 0:02:11]} 11. f3 {[%clk 0:02:33]}  Be6 {[%clk 0:02:11]} 12. d3 {[%clk 0:02:31]}  Ne8 {[%clk 0:02:07]} 13. Nce3 {[%clk 0:02:26]}  Nd4 {[%clk 0:02:02]} 14. b3 {[%clk 0:02:19]}  Bd8 {[%clk 0:01:56]} 15. Nc2 {[%clk 0:02:13]}  Nxc2 {[%clk 0:01:42]} 16. Qxc2 {[%clk 0:02:14]}  c6 {[%clk 0:01:41]} 17. Ne3 {[%clk 0:02:10]}  Bb6 {[%clk 0:01:40]} 18. Kh1 {[%clk 0:02:10]}  f5 {[%clk 0:01:11]} 19. exf5 {[%clk 0:02:01]}  Bxf5 {[%clk 0:01:11]} 20. Nxf5 {[%clk 0:01:59]}  Qxf5 {[%clk 0:01:12]} 21. f4 {[%clk 0:01:55]}  Nf6 {[%clk 0:01:05]} 22. fxe5 {[%clk 0:01:36]}  Qxe5 {[%clk 0:01:05]} 23. Bb2 {[%clk 0:01:36]}  Qg5 {[%clk 0:01:06]} 24. Bxf6 {[%clk 0:01:28]}  Rxf6 {[%clk 0:01:07]} 25. Rxf6 {[%clk 0:01:27]}  Qxf6 {[%clk 0:01:07]} 26. Rf1 {[%clk 0:01:27]}  Qe5 {[%clk 0:01:00]} 27. Qd1 {[%clk 0:01:21]}  Rf8 {[%clk 0:00:41]} 28. Rxf8+ {[%clk 0:01:18]}  Kxf8 {[%clk 0:00:42]} 29. Be4 {[%clk 0:01:12]}  g6 {[%clk 0:00:37]} 30. Kg2 {[%clk 0:01:07]}  Qb2+ {[%clk 0:00:33]} 31. Kh3 {[%clk 0:01:06]}  Qxa2 {[%clk 0:00:22]} 32. Qg4 {[%clk 0:01:01]}  Qa6 {[%clk 0:00:07]} 33. Qc8+ {[%clk 0:00:59]}  Kg7 {[%clk 0:00:06]} 34. Qd7+ {[%clk 0:00:59]}  Kg8 {[%clk 0:00:05]} 35. Qe8+ {[%clk 0:00:56]}  Kg7 {[%clk 0:00:05]} 36. Qe7+ {[%clk 0:00:56]}  Kg8 {[%clk 0:00:06]} 37. Bf3 {[%clk 0:00:33]}  Qa1 {[%clk 0:00:02]} 38. Bg4 {[%clk 0:00:26]}  Qf1+ {[%clk 0:00:03]} 39. Kh4 {[%clk 0:00:26]}  Bd4 {[%clk 0:00:02]} 40. Be6+ {[%clk 0:00:26]}  Kh8 {[%clk 0:00:02]} 41. Qe8+ {[%clk 0:00:13]}  Kg7 {[%clk 0:00:02]} 42. g4 {[%clk 0:00:07]}  Bf2+ {[%clk 0:00:01]} 43. Kg5 {[%clk 0:00:06]}  Qc1# {[%clk 0:00:02]} 0-1

[Event "December 19 Early 2023"]
[Site "https://www.chess.com"]
[Date "2023.12.19"]
[Round "8"]
[White "Yaran, Siar"]
[Black "Sharapov, Evgeny"]
[Result "1-0"]
[Board "52"]
[TimeControl "180+1"]
[WhiteFideId "6323006"]
[BlackFideId "14103133"]
[WhiteElo "2191"]
[BlackElo "2358"]
[WhiteTeam "TUR"]
[BlackTeam "UKR"]
[WhiteClock "0:01:19"]
[BlackClock "0:01:08"]

1. e4 {[%clk 0:02:59]}  c5 {[%clk 0:02:59]} 2. Nf3 {[%clk 0:02:59]}  d6 {[%clk 0:03:00]} 3. d4 {[%clk 0:02:59]}  cxd4 {[%clk 0:03:00]} 4. Nxd4 {[%clk 0:03:00]}  Nf6 {[%clk 0:03:00]} 5. Nc3 {[%clk 0:03:00]}  Nc6 {[%clk 0:03:00]} 6. Bc4 {[%clk 0:03:00]}  Qb6 {[%clk 0:02:59]} 7. Nde2 {[%clk 0:02:54]}  e6 {[%clk 0:02:59]} 8. O-O {[%clk 0:02:53]}  Be7 {[%clk 0:02:59]} 9. Bb3 {[%clk 0:02:52]}  O-O {[%clk 0:02:59]} 10. Kh1 {[%clk 0:02:51]}  a6 {[%clk 0:02:59]} 11. f4 {[%clk 0:02:52]}  Na5 {[%clk 0:02:59]} 12. f5 {[%clk 0:02:36]}  Nxb3 {[%clk 0:02:57]} 13. cxb3 {[%clk 0:02:35]}  e5 {[%clk 0:02:56]} 14. Bg5 {[%clk 0:02:35]}  Qd8 {[%clk 0:02:51]} 15. Bxf6 {[%clk 0:02:34]}  Bxf6 {[%clk 0:02:51]} 16. Nd5 {[%clk 0:02:35]}  Bd7 {[%clk 0:02:47]} 17. Ng3 {[%clk 0:02:22]}  Bc6 {[%clk 0:02:42]} 18. Qg4 {[%clk 0:02:11]}  Bxd5 {[%clk 0:02:41]} 19. exd5 {[%clk 0:02:12]}  Qe7 {[%clk 0:02:39]} 20. Ne4 {[%clk 0:02:10]}  Rac8 {[%clk 0:02:37]} 21. Rac1 {[%clk 0:02:10]}  Kh8 {[%clk 0:02:33]} 22. Rc3 {[%clk 0:02:08]}  Rxc3 {[%clk 0:02:32]} 23. bxc3 {[%clk 0:02:08]}  b5 {[%clk 0:02:32]} 24. Rf3 {[%clk 0:02:04]}  Rc8 {[%clk 0:02:14]} 25. Qh5 {[%clk 0:01:58]}  h6 {[%clk 0:01:59]} 26. g4 {[%clk 0:01:43]}  Bg5 {[%clk 0:01:58]} 27. f6 {[%clk 0:01:37]}  g6 {[%clk 0:01:08]} 28. Qh3 {[%clk 0:01:19]} 1-0

[Event "December 19 Early 2023"]
[Site "https://www.chess.com"]
[Date "2023.12.19"]
[Round "8"]
[White "Martinez Reyes, Pedro Ramon"]
[Black "Koellner, Ruben Gideon"]
[Result "1-0"]
[Board "53"]
[TimeControl "180+1"]
[WhiteFideId "3901807"]
[BlackFideId "12993093"]
[WhiteElo "2327"]
[BlackElo "2347"]
[WhiteTeam "VEN"]
[BlackTeam "GER"]
[WhiteClock "0:00:14"]
[BlackClock "0:00:00"]

1. Nf3 {[%clk 0:03:00]}  a6 {[%clk 0:02:43]} 2. g3 {[%clk 0:02:59]}  b5 {[%clk 0:02:42]} 3. Bg2 {[%clk 0:03:00]}  Bb7 {[%clk 0:02:43]} 4. O-O {[%clk 0:03:00]}  e6 {[%clk 0:02:43]} 5. d3 {[%clk 0:03:01]}  Nf6 {[%clk 0:02:43]} 6. e4 {[%clk 0:03:01]}  Be7 {[%clk 0:02:43]} 7. e5 {[%clk 0:03:00]}  Nd5 {[%clk 0:02:43]} 8. c4 {[%clk 0:02:58]}  bxc4 {[%clk 0:02:42]} 9. dxc4 {[%clk 0:02:59]}  Nb6 {[%clk 0:02:43]} 10. Qe2 {[%clk 0:02:59]}  c5 {[%clk 0:02:41]} 11. Nc3 {[%clk 0:02:58]}  Nc6 {[%clk 0:02:41]} 12. Rd1 {[%clk 0:02:58]}  Qc7 {[%clk 0:02:40]} 13. Bf4 {[%clk 0:02:57]}  h6 {[%clk 0:02:40]} 14. h4 {[%clk 0:02:58]}  Rg8 {[%clk 0:02:38]} 15. h5 {[%clk 0:02:58]}  O-O-O {[%clk 0:02:24]} 16. Ne4 {[%clk 0:02:54]}  Kb8 {[%clk 0:02:11]} 17. Nd6 {[%clk 0:02:53]}  Bxd6 {[%clk 0:02:11]} 18. exd6 {[%clk 0:02:54]}  Qc8 {[%clk 0:02:12]} 19. Qe3 {[%clk 0:02:45]}  e5 {[%clk 0:01:58]} 20. Qxc5 {[%clk 0:02:38]}  exf4 {[%clk 0:01:54]} 21. Qxb6 {[%clk 0:02:39]}  fxg3 {[%clk 0:01:54]} 22. fxg3 {[%clk 0:02:33]}  Rde8 {[%clk 0:01:50]} 23. Re1 {[%clk 0:02:28]}  Qd8 {[%clk 0:01:45]} 24. Qc5 {[%clk 0:02:18]}  Qa5 {[%clk 0:01:35]} 25. Qxa5 {[%clk 0:02:13]}  Nxa5 {[%clk 0:01:36]} 26. b3 {[%clk 0:02:13]}  Bxf3 {[%clk 0:01:33]} 27. Bxf3 {[%clk 0:02:13]}  Nb7 {[%clk 0:01:34]} 28. Kf2 {[%clk 0:01:26]}  Nxd6 {[%clk 0:01:15]} 29. Red1 {[%clk 0:01:24]}  Kc7 {[%clk 0:01:14]} 30. Rd5 {[%clk 0:01:24]}  Ne4+ {[%clk 0:01:12]} 31. Kg2 {[%clk 0:01:10]}  d6 {[%clk 0:00:59]} 32. Ra5 {[%clk 0:01:01]}  Kb6 {[%clk 0:00:35]} 33. b4 {[%clk 0:01:01]}  Nd2 {[%clk 0:00:26]} 34. Bd5 {[%clk 0:00:55]}  Re2+ {[%clk 0:00:20]} 35. Kh3 {[%clk 0:00:55]}  Rge8 {[%clk 0:00:13]} 36. Rc1 {[%clk 0:00:44]}  R8e5 {[%clk 0:00:11]} 37. Bxf7 {[%clk 0:00:34]}  Rxa5 {[%clk 0:00:09]} 38. bxa5+ {[%clk 0:00:35]}  Kxa5 {[%clk 0:00:09]} 39. c5 {[%clk 0:00:36]}  dxc5 {[%clk 0:00:07]} 40. Rxc5+ {[%clk 0:00:37]}  Kb4 {[%clk 0:00:07]} 41. Rc7 {[%clk 0:00:35]}  Nf3 {[%clk 0:00:06]} 42. Rb7+ {[%clk 0:00:23]}  Kc5 {[%clk 0:00:04]} 43. Bb3 {[%clk 0:00:22]}  Ng5+ {[%clk 0:00:03]} 44. Kg4 {[%clk 0:00:22]}  Re4+ {[%clk 0:00:02]} 45. Kf5 {[%clk 0:00:22]}  Re3 {[%clk 0:00:03]} 46. g4 {[%clk 0:00:20]}  Rf3+ {[%clk 0:00:02]} 47. Kg6 {[%clk 0:00:20]}  Rf4 {[%clk 0:00:02]} 48. Kxg7 {[%clk 0:00:15]}  Rxg4 {[%clk 0:00:03]} 49. Kxh6 {[%clk 0:00:16]}  Ne4 {[%clk 0:00:03]} 50. Rf7 {[%clk 0:00:14]}  Kd4 {[%clk 0:00:02]} 51. Kh7 {[%clk 0:00:14]}  Ke5 {[%clk 0:00:02]} 52. h6 {[%clk 0:00:14]}  Nf6+ {[%clk 0:00:02]} 53. Rxf6 {[%clk 0:00:13]}  Kxf6 {[%clk 0:00:03]} 54. Kh8 {[%clk 0:00:13]}  Rd4 {[%clk 0:00:02]} 55. h7 {[%clk 0:00:13]}  Rd8+ {[%clk 0:00:02]} 56. Bg8 {[%clk 0:00:14]}  Kg6 {[%clk 0:00:00]} 57. a4 {[%clk 0:00:14]} 1-0

[Event "December 19 Early 2023"]
[Site "https://www.chess.com"]
[Date "2023.12.19"]
[Round "8"]
[White "Asish Panda"]
[Black "JonaszBaum"]
[Result "1-0"]
[Board "54"]
[TimeControl "180+1"]
[WhiteFideId "45012458"]
[WhiteElo "1767"]
[BlackElo "2695"]
[WhiteTeam "IND"]
[WhiteClock "0:00:44"]
[BlackClock "0:00:03"]

1. e4 {[%clk 0:03:00]}  c5 {[%clk 0:03:00]} 2. Nf3 {[%clk 0:03:00]}  Nc6 {[%clk 0:03:00]} 3. Bb5 {[%clk 0:03:00]}  d6 {[%clk 0:03:00]} 4. O-O {[%clk 0:03:00]}  Bd7 {[%clk 0:03:00]} 5. c3 {[%clk 0:03:00]}  a6 {[%clk 0:02:59]} 6. Ba4 {[%clk 0:02:59]}  Nf6 {[%clk 0:02:59]} 7. Re1 {[%clk 0:02:57]}  b5 {[%clk 0:02:48]} 8. Bc2 {[%clk 0:02:56]}  Bg4 {[%clk 0:02:47]} 9. h3 {[%clk 0:02:50]}  Bxf3 {[%clk 0:02:40]} 10. Qxf3 {[%clk 0:02:49]}  e6 {[%clk 0:02:34]} 11. d3 {[%clk 0:02:44]}  Be7 {[%clk 0:02:34]} 12. Nd2 {[%clk 0:02:41]}  O-O {[%clk 0:02:33]} 13. Nf1 {[%clk 0:02:41]}  d5 {[%clk 0:02:29]} 14. Ng3 {[%clk 0:02:37]}  c4 {[%clk 0:02:20]} 15. d4 {[%clk 0:02:34]}  dxe4 {[%clk 0:02:08]} 16. Nxe4 {[%clk 0:02:32]}  Nd5 {[%clk 0:02:06]} 17. Bf4 {[%clk 0:02:12]}  a5 {[%clk 0:01:51]} 18. a3 {[%clk 0:02:08]}  b4 {[%clk 0:01:49]} 19. axb4 {[%clk 0:02:07]}  axb4 {[%clk 0:01:50]} 20. Rxa8 {[%clk 0:02:06]}  Qxa8 {[%clk 0:01:51]} 21. Bd6 {[%clk 0:02:01]}  b3 {[%clk 0:01:41]} 22. Bb1 {[%clk 0:01:56]}  h6 {[%clk 0:01:22]} 23. Bxe7 {[%clk 0:01:51]}  Ncxe7 {[%clk 0:01:23]} 24. Nc5 {[%clk 0:01:38]}  Nb6 {[%clk 0:01:04]} 25. Qg4 {[%clk 0:01:28]}  Kh8 {[%clk 0:00:58]} 26. Kh2 {[%clk 0:01:14]}  Qa1 {[%clk 0:00:55]} 27. Qe4 {[%clk 0:01:08]}  Ng6 {[%clk 0:00:51]} 28. Nxe6 {[%clk 0:01:03]}  Re8 {[%clk 0:00:50]} 29. Qc6 {[%clk 0:01:02]}  Rg8 {[%clk 0:00:23]} 30. Qxb6 {[%clk 0:00:54]}  fxe6 {[%clk 0:00:23]} 31. Qxe6 {[%clk 0:00:52]}  Nf8 {[%clk 0:00:20]} 32. Qxg8+ {[%clk 0:00:44]}  Kxg8 {[%clk 0:00:16]} 33. Bh7+ {[%clk 0:00:45]}  Kxh7 {[%clk 0:00:16]} 34. Rxa1 {[%clk 0:00:46]}  Kg6 {[%clk 0:00:06]} 35. Ra4 {[%clk 0:00:45]}  Kf5 {[%clk 0:00:04]} 36. Rxc4 {[%clk 0:00:45]}  Ke4 {[%clk 0:00:03]} 37. Rb4 {[%clk 0:00:44]} 1-0

[Event "December 19 Early 2023"]
[Site "https://www.chess.com"]
[Date "2023.12.19"]
[Round "8"]
[White "Cristobal, Manuel"]
[Black "Buksa, Nataliya"]
[Result "0-1"]
[Board "55"]
[TimeControl "180+1"]
[WhiteFideId "112879"]
[BlackFideId "14123622"]
[WhiteElo "2244"]
[BlackElo "2316"]
[WhiteTeam "ARG"]
[BlackTeam "UKR"]
[WhiteClock "0:00:00"]
[BlackClock "0:00:08"]

1. d4 {[%clk 0:02:46]}  d5 {[%clk 0:02:59]} 2. Nf3 {[%clk 0:02:46]}  e6 {[%clk 0:02:58]} 3. e3 {[%clk 0:02:47]}  Nf6 {[%clk 0:02:59]} 4. Bd3 {[%clk 0:02:44]}  Bd6 {[%clk 0:02:59]} 5. O-O {[%clk 0:02:44]}  a6 {[%clk 0:02:59]} 6. b3 {[%clk 0:02:45]}  b6 {[%clk 0:02:59]} 7. Bb2 {[%clk 0:02:45]}  O-O {[%clk 0:02:59]} 8. Ne5 {[%clk 0:02:44]}  Bb7 {[%clk 0:02:56]} 9. Nd2 {[%clk 0:02:42]}  Ne4 {[%clk 0:02:51]} 10. f4 {[%clk 0:02:37]}  f6 {[%clk 0:02:48]} 11. Nec4 {[%clk 0:02:32]}  Nxd2 {[%clk 0:02:30]} 12. Nxd2 {[%clk 0:02:31]}  f5 {[%clk 0:02:26]} 13. c4 {[%clk 0:02:26]}  Nd7 {[%clk 0:02:24]} 14. a3 {[%clk 0:02:24]}  Nf6 {[%clk 0:02:23]} 15. b4 {[%clk 0:02:15]}  c5 {[%clk 0:02:20]} 16. dxc5 {[%clk 0:01:51]}  bxc5 {[%clk 0:02:20]} 17. Nb3 {[%clk 0:01:47]}  Qe7 {[%clk 0:01:12]} 18. bxc5 {[%clk 0:01:43]}  Bxc5 {[%clk 0:01:13]} 19. Nxc5 {[%clk 0:01:42]}  Qxc5 {[%clk 0:01:13]} 20. Bd4 {[%clk 0:01:41]}  Qe7 {[%clk 0:01:12]} 21. c5 {[%clk 0:01:42]}  Ne4 {[%clk 0:01:07]} 22. Rb1 {[%clk 0:01:16]}  Rab8 {[%clk 0:01:01]} 23. Bxe4 {[%clk 0:00:58]}  dxe4 {[%clk 0:00:55]} 24. Be5 {[%clk 0:00:58]}  Qxc5 {[%clk 0:00:55]} 25. Bxb8 {[%clk 0:00:54]}  Qxe3+ {[%clk 0:00:46]} 26. Kh1 {[%clk 0:00:53]}  Rxb8 {[%clk 0:00:45]} 27. Qd6 {[%clk 0:00:51]}  Qa7 {[%clk 0:00:40]} 28. Qxe6+ {[%clk 0:00:48]}  Kh8 {[%clk 0:00:40]} 29. Qxf5 {[%clk 0:00:30]}  e3 {[%clk 0:00:40]} 30. Rfe1 {[%clk 0:00:23]}  h6 {[%clk 0:00:25]} 31. Qe5 {[%clk 0:00:19]}  Rd8 {[%clk 0:00:21]} 32. Qxe3 {[%clk 0:00:18]}  Qa8 {[%clk 0:00:20]} 33. Qf2 {[%clk 0:00:17]}  Bc6 {[%clk 0:00:20]} 34. Rbd1 {[%clk 0:00:17]}  Rf8 {[%clk 0:00:20]} 35. f5 {[%clk 0:00:16]}  Be4 {[%clk 0:00:20]} 36. Re2 {[%clk 0:00:05]}  Rxf5 {[%clk 0:00:19]} 37. Qh4 {[%clk 0:00:05]}  Bd5 {[%clk 0:00:15]} 38. Red2 {[%clk 0:00:04]}  Qc6 {[%clk 0:00:11]} 39. Qd4 {[%clk 0:00:00]}  Rg5 {[%clk 0:00:08]} 0-1

[Event "December 19 Early 2023"]
[Site "https://www.chess.com"]
[Date "2023.12.19"]
[Round "8"]
[White "Kurmangaliyeva, Liya"]
[Black "Timerkhanov, Alexander"]
[Result "0-1"]
[Board "56"]
[TimeControl "180+1"]
[WhiteFideId "13725831"]
[BlackFideId "24177938"]
[WhiteElo "2077"]
[BlackElo "2278"]
[WhiteTeam "KAZ"]
[BlackTeam "RUS"]
[WhiteClock "0:00:02"]
[BlackClock "0:00:18"]

1. d4 {[%clk 0:03:00]}  d5 {[%clk 0:02:59]} 2. c4 {[%clk 0:03:00]}  c6 {[%clk 0:03:00]} 3. Nf3 {[%clk 0:03:00]}  Nf6 {[%clk 0:03:00]} 4. Nc3 {[%clk 0:03:00]}  dxc4 {[%clk 0:03:01]} 5. g3 {[%clk 0:02:56]}  Bf5 {[%clk 0:02:57]} 6. Bg2 {[%clk 0:02:50]}  e6 {[%clk 0:02:54]} 7. O-O {[%clk 0:02:49]}  Nbd7 {[%clk 0:02:38]} 8. Nh4 {[%clk 0:02:45]}  Bg4 {[%clk 0:02:35]} 9. Qc2 {[%clk 0:02:33]}  Nb6 {[%clk 0:02:30]} 10. Rd1 {[%clk 0:02:24]}  Be7 {[%clk 0:02:23]} 11. Nf3 {[%clk 0:02:22]}  O-O {[%clk 0:02:18]} 12. Ne5 {[%clk 0:02:15]}  Bh5 {[%clk 0:02:18]} 13. h3 {[%clk 0:02:12]}  Nfd7 {[%clk 0:02:15]} 14. g4 {[%clk 0:02:07]}  Bg6 {[%clk 0:02:03]} 15. Nxg6 {[%clk 0:02:07]}  hxg6 {[%clk 0:02:04]} 16. e4 {[%clk 0:02:08]}  Qc7 {[%clk 0:02:02]} 17. Be3 {[%clk 0:02:06]}  Rfe8 {[%clk 0:01:59]} 18. Qe2 {[%clk 0:01:31]}  Bd6 {[%clk 0:01:57]} 19. e5 {[%clk 0:01:28]}  Bf8 {[%clk 0:01:45]} 20. Ne4 {[%clk 0:01:28]}  c5 {[%clk 0:01:41]} 21. dxc5 {[%clk 0:01:21]}  Nxc5 {[%clk 0:01:37]} 22. Nd6 {[%clk 0:01:22]}  Bxd6 {[%clk 0:01:27]} 23. exd6 {[%clk 0:01:15]}  Qc8 {[%clk 0:01:27]} 24. Rac1 {[%clk 0:01:06]}  Rd8 {[%clk 0:01:26]} 25. b4 {[%clk 0:00:56]}  Nd3 {[%clk 0:01:21]} 26. Rxd3 {[%clk 0:00:45]}  cxd3 {[%clk 0:01:21]} 27. Qxd3 {[%clk 0:00:45]}  Qd7 {[%clk 0:01:20]} 28. Bf4 {[%clk 0:00:31]}  Nc8 {[%clk 0:01:20]} 29. Rd1 {[%clk 0:00:31]}  a5 {[%clk 0:01:19]} 30. b5 {[%clk 0:00:29]}  a4 {[%clk 0:01:17]} 31. h4 {[%clk 0:00:29]}  Ra5 {[%clk 0:01:15]} 32. Bf1 {[%clk 0:00:23]}  a3 {[%clk 0:01:14]} 33. h5 {[%clk 0:00:22]}  Ra4 {[%clk 0:01:14]} 34. Qe3 {[%clk 0:00:17]}  e5 {[%clk 0:01:13]} 35. Bxe5 {[%clk 0:00:15]}  Qxg4+ {[%clk 0:01:13]} 36. Bg3 {[%clk 0:00:15]}  Qxd1 {[%clk 0:01:13]} 37. hxg6 {[%clk 0:00:15]}  Qd5 {[%clk 0:00:51]} 38. gxf7+ {[%clk 0:00:11]}  Qxf7 {[%clk 0:00:48]} 39. Bh3 {[%clk 0:00:11]}  Kf8 {[%clk 0:00:20]} 40. Be6 {[%clk 0:00:07]}  Qf6 {[%clk 0:00:20]} 41. d7 {[%clk 0:00:07]}  Ne7 {[%clk 0:00:19]} 42. Bh3 {[%clk 0:00:05]}  Rd4 {[%clk 0:00:19]} 43. Be5 {[%clk 0:00:05]}  Rd1+ {[%clk 0:00:20]} 44. Kh2 {[%clk 0:00:05]}  Qg6 {[%clk 0:00:18]} 45. Qf4+ {[%clk 0:00:05]}  Kg8 {[%clk 0:00:18]} 46. Bg2 {[%clk 0:00:05]}  R1xd7 {[%clk 0:00:17]} 47. Bc7 {[%clk 0:00:03]}  Qh6+ {[%clk 0:00:16]} 48. Qxh6 {[%clk 0:00:03]}  gxh6 {[%clk 0:00:17]} 49. Bxd8 {[%clk 0:00:03]}  Rxd8 {[%clk 0:00:18]} 50. Bxb7 {[%clk 0:00:02]}  Rd2 {[%clk 0:00:18]} 0-1

[Event "December 19 Early 2023"]
[Site "https://www.chess.com"]
[Date "2023.12.19"]
[Round "8"]
[White "Caruana, Fabiano"]
[Black "Dinu, Dumitru-Daniel"]
[Result "1-0"]
[Board "57"]
[TimeControl "180+1"]
[WhiteFideId "2020009"]
[BlackFideId "1208403"]
[WhiteElo "2815"]
[BlackElo "2240"]
[WhiteTeam "USA"]
[BlackTeam "ROU"]
[WhiteClock "0:01:52"]
[BlackClock "0:00:13"]

1. h3 {[%clk 0:03:00]}  e5 {[%clk 0:02:52]} 2. c4 {[%clk 0:02:57]}  Nf6 {[%clk 0:02:48]} 3. d3 {[%clk 0:02:52]}  Bb4+ {[%clk 0:02:46]} 4. Nd2 {[%clk 0:02:51]}  d5 {[%clk 0:02:44]} 5. cxd5 {[%clk 0:02:50]}  Qxd5 {[%clk 0:02:44]} 6. a3 {[%clk 0:02:50]}  Bxd2+ {[%clk 0:02:44]} 7. Bxd2 {[%clk 0:02:51]}  c5 {[%clk 0:02:44]} 8. e4 {[%clk 0:02:50]}  Qd6 {[%clk 0:02:42]} 9. b4 {[%clk 0:02:49]}  Nc6 {[%clk 0:02:39]} 10. bxc5 {[%clk 0:02:48]}  Qxc5 {[%clk 0:02:39]} 11. Nf3 {[%clk 0:02:48]}  O-O {[%clk 0:02:38]} 12. Be2 {[%clk 0:02:47]}  Qd6 {[%clk 0:02:35]} 13. O-O {[%clk 0:02:47]}  Be6 {[%clk 0:02:32]} 14. Qb1 {[%clk 0:02:40]}  Qd7 {[%clk 0:02:24]} 15. Bc3 {[%clk 0:02:39]}  Nd4 {[%clk 0:02:07]} 16. Bxd4 {[%clk 0:02:29]}  exd4 {[%clk 0:02:07]} 17. Qb4 {[%clk 0:02:29]}  Rfd8 {[%clk 0:02:06]} 18. Rfc1 {[%clk 0:02:30]}  Rac8 {[%clk 0:01:53]} 19. Rxc8 {[%clk 0:02:26]}  Qxc8 {[%clk 0:01:53]} 20. Nxd4 {[%clk 0:02:24]}  a5 {[%clk 0:01:43]} 21. Qb6 {[%clk 0:02:22]}  Bd7 {[%clk 0:01:36]} 22. Nf3 {[%clk 0:02:15]}  Re8 {[%clk 0:01:30]} 23. Qxa5 {[%clk 0:02:11]}  Qc2 {[%clk 0:01:23]} 24. Qd2 {[%clk 0:02:05]}  Qa4 {[%clk 0:01:23]} 25. Qb4 {[%clk 0:02:03]}  Qc2 {[%clk 0:01:23]} 26. Nd4 {[%clk 0:02:03]}  Qc7 {[%clk 0:01:18]} 27. Rb1 {[%clk 0:02:03]}  Bc8 {[%clk 0:01:14]} 28. Nb5 {[%clk 0:02:00]}  Qc2 {[%clk 0:01:06]} 29. Qb2 {[%clk 0:01:59]}  Qc5 {[%clk 0:01:03]} 30. Rc1 {[%clk 0:01:57]}  Qb6 {[%clk 0:01:00]} 31. Qb4 {[%clk 0:01:54]}  Qe6 {[%clk 0:00:14]} 32. Nc7 {[%clk 0:01:52]}  Rd8 {[%clk 0:00:13]} 33. Nxe6 {[%clk 0:01:52]} 1-0